bitfinex/quotes_ETHUSD_20241231
["timestamp","ask_amount","ask_price","bid_price","bid_amount"]
[1735663952947,0.15276736,3413.0,3412.9,0.79599014]
[1735663954015,0.15276736,3413.0,3412.9,0.03079014]
[1735663954222,0.15276736,3413.0,3412.6,0.7652]
[1735663954415,0.15276736,3413.0,3411.2,1.83920483]
[1735663954416,2.93005,3412.9,3412.7,0.03055313]
[1735663954722,2.93028,3412.7,3412.3,0.7652]
[1735663955533,2.93008,3412.9,3412.3,0.7652]
[1735663957623,0.15276736,3413.0,3412.3,0.7652]
[1735663960211,3.08276736,3413.0,3412.3,0.7652]
[1735663961540,2.93018,3412.8,3412.3,0.7652]
[1735663961735,2.93025,3412.7,3412.3,0.7652]
[1735663962335,0.15303868,3412.6,3412.3,0.7652]
[1735663963277,0.15303868,3412.6,3412.4,0.03113748]
[1735663965541,0.15303868,3412.6,3412.5,2.738]
[1735663965765,0.15303868,3412.6,3412.4,0.03113748]
[1735663965975,0.15303868,3412.6,3412.5,0.03114691]
[1735663966342,0.15303868,3412.6,3412.3,0.7652]
[1735663966679,0.15303868,3412.6,3412.5,0.0310828]
[1735663967246,0.15303868,3412.6,3412.3,0.7652]
[1735663967566,0.15303868,3412.6,3412.4,0.03115173]
[1735663969755,0.15303868,3412.6,3412.0,0.773]
[1735663969950,0.15303868,3412.6,3412.5,0.03111842]
[1735663970199,0.15303868,3412.6,3412.1,0.25441171]
[1735663970365,0.15303868,3412.6,3412.5,0.03111842]
[1735663970566,0.15303868,3412.6,3412.1,0.25441171]
[1735663970753,0.15303868,3412.6,3412.5,0.03111842]
[1735663971087,0.15303868,3412.6,3412.1,0.40274117]
[1735663971291,0.15303868,3412.6,3412.5,0.03111842]
[1735663971591,0.15303868,3412.6,3412.1,0.40274117]
[1735663971791,0.15303868,3412.6,3412.5,0.03120391]
[1735663971965,0.15303868,3412.6,3412.1,0.40274117]
[1735663972163,0.15303868,3412.6,3412.5,0.03130366]
[1735663972362,0.15303868,3412.6,3412.2,0.66520753]
[1735663972563,0.15303868,3412.6,3412.5,0.03130366]
[1735663972777,0.15303868,3412.6,3412.3,0.25455241]
[1735663973078,0.15303868,3412.6,3412.4,0.285925]
[1735663973772,0.15303868,3412.6,3412.4,0.03137259]
[1735663974194,0.15303868,3412.6,3412.2,0.41065512]
[1735663974522,0.15303868,3412.6,3412.3,0.41143451]
[1735663974720,0.15303868,3412.6,3412.3,0.44281192]
[1735663974919,0.15303868,3412.6,3412.4,0.25460934]
[1735663975145,0.15303868,3412.6,3412.5,5.7961]
[1735663975423,0.15303868,3412.6,3412.5,4.23125]
[1735663975597,0.15303868,3412.6,3412.5,5.33128419]
[1735663976081,0.15303868,3412.6,3412.5,5.58589263]
[1735663976286,0.15303868,3412.6,3412.5,1.08192661]
[1735663976708,0.15303868,3412.6,3412.5,0.82731817]
[1735663977111,0.15303868,3412.6,3412.5,3.17817817]
[1735663977324,0.15303868,3412.6,3412.5,3.76465817]
[1735663977929,3.08334868,3412.6,3412.5,0.03121817]
[1735663978227,3.08334868,3412.6,3412.5,0.04172074]
[1735663978401,2.9304,3412.5,3411.9,0.7961]
[1735663978582,0.15303868,3412.6,3412.0,7.93079]
[1735663978787,0.15303868,3412.6,3412.2,2.82905226]
[1735663979000,0.15303868,3412.6,3412.5,9.55555226]
[1735663979329,0.15298009,3413.3,3413.1,0.7961]
[1735663979492,0.15298009,3413.3,3413.2,4.76436128]
[1735663979835,0.15298009,3413.3,3413.2,4.80917448]
[1735663980015,0.15298009,3413.3,3413.2,5.58147615]
[1735663980334,0.15298009,3413.3,3413.2,2.3668607]
[1735663980631,0.15298009,3413.3,3413.2,5.2952007]
[1735663980833,0.15298009,3413.3,3413.2,5.0531407]
[1735663981333,0.15298009,3413.3,3413.2,4.6767207]
[1735663981539,0.15298009,3413.3,3413.2,6.08195245]
[1735663981707,0.15298009,3413.3,3413.2,6.3017566]
[1735663981906,0.15298009,3413.3,3413.2,3.9918966]
[1735663982112,0.15298009,3413.3,3413.2,6.9418566]
[1735663982717,0.15298009,3413.3,3413.2,8.8436766]
[1735663982912,0.15298009,3413.3,3413.2,9.6105044]
[1735663983094,0.15298009,3413.3,3413.2,8.08551235]
[1735663983297,0.15298009,3413.3,3413.2,7.54126235]
[1735663983607,0.15298009,3413.3,3413.2,6.64779235]
[1735663983808,0.15298009,3413.3,3413.2,3.95080235]
[1735663984026,0.15298009,3413.3,3413.2,5.69169]
[1735663984231,0.15298009,3413.3,3413.2,2.3323]
[1735663984618,0.15298009,3413.3,3413.2,5.13083872]
[1735663984817,0.15298009,3413.3,3413.2,0.8409132]
[1735663985052,0.15298009,3413.3,3413.2,3.6523132]
[1735663985260,0.15298009,3413.3,3413.2,1.62175918]
[1735663985768,0.15298009,3413.3,3413.2,5.20665918]
[1735663986050,0.15298009,3413.3,3413.2,3.98211918]
[1735663986250,0.15298009,3413.3,3413.2,4.57056918]
[1735663986874,0.15298009,3413.3,3413.2,3.75601918]
[1735663987165,0.15298009,3413.3,3413.2,2.3109032]
[1735663987325,0.15298009,3413.3,3413.2,0.0448132]
[1735663987526,0.15298009,3413.3,3413.2,5.0448132]
[1735663988633,0.15298009,3413.3,3413.2,0.0448132]
[1735663989632,0.15298009,3413.3,3412.9,0.25361865]
[1735663989867,0.15298009,3413.3,3413.0,0.04815195]
[1735663990257,0.15298009,3413.3,3412.8,0.7961]
[1735663990457,0.15298009,3413.3,3412.8,1.48224414]
[1735663990764,0.15298009,3413.3,3413.0,3.0]
[1735663990951,0.15298009,3413.3,3412.9,0.04821023]
[1735663991155,0.15298009,3413.3,3412.8,0.7961]
[1735663991331,0.15298009,3413.3,3413.0,0.04815195]
[1735663991539,0.15298009,3413.3,3413.1,2.78601]
[1735663991744,0.15298009,3413.3,3413.1,0.04809367]
[1735663991944,0.5431351,3413.3,3413.1,0.04809367]
[1735663992272,0.5431351,3413.3,3412.6,0.8159]
[1735663992467,0.15298009,3413.3,3412.7,5.0]
[1735663992794,3.08271009,3413.3,3412.6,0.8159]
[1735663992939,3.08271009,3413.3,3412.7,2.78694]
[1735663993140,0.15298009,3413.3,3412.7,2.23894]
[1735663993346,0.15298009,3413.3,3412.6,0.8159]
[1735663993557,0.15298009,3413.3,3412.7,5.0]
[1735663993914,0.8203,3413.2,3412.3,2.05253232]
[1735663994129,3.7501,3413.2,3412.3,2.05253232]
[1735663994276,3.7501,3413.2,3412.4,1.22613655]
[1735663995011,3.7501,3413.2,3412.3,0.82639577]
[1735663995332,3.7501,3413.2,3412.3,0.96036451]
[1735663996358,2.92995,3413.1,3412.3,0.82639577]
[1735663996598,0.8203,3413.2,3412.4,0.20525323]
[1735663996973,3.75012,3413.2,3412.4,0.20525323]
[1735663997761,0.8203,3413.2,3412.2,1.52176933]
[1735663998266,2.93006,3412.9,3412.3,0.25379228]
[1735663998598,2.93006,3412.9,3412.3,1.26834229]
[1735663998974,2.93006,3412.9,3412.3,1.01455001]
[1735663999369,2.92992,3413.1,3412.1,1.52176933]
[1735663999589,0.15302126,3412.8,3412.2,1.15077781]
[1735663999905,0.15302126,3412.8,3412.2,1.28484753]
[1735664000068,0.15302126,3412.8,3412.3,0.7989]
[1735664000399,0.15302126,3412.8,3412.3,1.27183494]
[1735664000605,0.15302126,3412.8,3412.4,3.40784518]
[1735664000812,0.15302126,3412.8,3412.4,3.66169835]
[1735664000981,0.8227,3412.7,3412.4,0.25385317]
[1735664001699,0.8227,3412.7,3412.1,1.22613655]
[1735664002002,0.8227,3412.7,3411.9,3.0]
[1735664002193,0.8227,3412.7,3411.8,0.7989]
[1735664002374,0.8227,3412.7,3412.1,3.0]
[1735664002902,0.8227,3412.7,3412.0,3.0]
[1735664003313,0.8227,3412.7,3411.8,0.7989]
[1735664003819,3.75295,3412.7,3411.9,0.21917487]
[1735664004029,3.75295,3412.7,3411.9,0.47285305]
[1735664004404,3.75295,3412.7,3411.9,0.25367818]
[1735664004978,0.8227,3412.7,3411.8,0.7989]
[1735664005280,0.8227,3412.7,3411.9,0.65472945]
[1735664007105,0.8227,3412.7,3412.0,0.25349255]
[1735664007719,0.8227,3412.7,3411.9,6.71955854]
[1735664008223,0.8227,3412.7,3412.0,0.35290548]
[1735664008518,0.8227,3412.7,3412.0,4.87404392]
[1735664008724,0.8227,3412.7,3412.1,4.18241808]
[1735664009033,0.8227,3412.7,3412.1,1.40137447]
[1735664009194,0.8227,3412.7,3412.1,1.26742538]
[1735664009596,0.8227,3412.7,3412.1,1.04846899]
[1735664009821,0.8227,3412.7,3411.9,3.65472945]
[1735664010183,0.8227,3412.7,3412.0,0.25365459]
[1735664010621,0.8227,3412.7,3412.0,0.4727742]
[1735664010920,0.8227,3412.7,3412.1,0.25365459]
[1735664011516,0.8227,3412.7,3411.9,6.58562945]
[1735664011713,0.8227,3412.7,3412.0,0.8610666]
[1735664011915,0.8227,3412.7,3412.0,0.99509341]
[1735664012426,0.8227,3412.7,3412.0,0.8610666]
[1735664012584,0.8227,3412.7,3411.9,6.58562945]
[1735664012585,0.8227,3412.7,3411.9,0.65472945]
[1735664012784,0.8227,3412.7,3411.7,7.15721655]
[1735664012990,0.8227,3412.7,3412.1,0.25373786]
[1735664013853,0.8227,3412.7,3411.9,3.0]
[1735664014238,0.8227,3412.7,3412.0,0.25378206]
[1735664014950,0.8227,3412.7,3411.9,3.0]
[1735664015174,0.8227,3412.7,3411.9,4.07923788]
[1735664015394,0.8227,3412.7,3412.0,0.2191965]
[1735664016094,0.8227,3412.7,3411.9,4.07923788]
[1735664016781,0.8227,3412.7,3412.0,0.13408585]
[1735664017101,0.8227,3412.7,3412.0,0.38788978]
[1735664017242,0.8227,3412.7,3412.1,0.43980177]
[1735664018927,0.8227,3412.7,3411.9,1.07923788]
[1735664019084,0.8227,3412.7,3411.9,6.90829014]
[1735664019282,0.15302126,3412.8,3412.4,0.8062]
[1735664019466,0.15302126,3412.8,3412.5,7.82905226]
[1735664019692,0.15302126,3412.8,3412.6,5.0]
[1735664019908,0.15302126,3412.8,3412.7,1.15656723]
[1735664020125,0.15302126,3412.8,3412.7,1.4105731]
[1735664020417,0.15302126,3412.8,3412.7,0.25400587]
[1735664020719,0.15302126,3412.8,3412.4,3.73662]
[1735664020919,0.15302126,3412.8,3412.5,5.0]
[1735664021416,0.15302126,3412.8,3412.5,5.25409986]
[1735664021630,0.15302126,3412.8,3412.6,4.97504986]
[1735664021769,0.15302126,3412.8,3412.7,0.87116699]
[1735664021975,0.15302126,3412.8,3412.7,0.25409986]
[1735664023478,0.15302126,3412.8,3412.7,4.00629986]
[1735664024072,0.15302126,3412.8,3412.7,0.25409986]
[1735664024890,0.15302126,3412.8,3412.7,3.11004986]
[1735664026177,0.15302126,3412.8,3412.7,6.83727986]
[1735664026377,0.15302126,3412.8,3412.7,10.93845811]
[1735664027411,0.15302126,3412.8,3412.7,13.47476761]
[1735664027603,0.15302126,3412.8,3412.7,10.54453761]
[1735664027971,0.15302126,3412.8,3412.7,10.75966364]
[1735664028175,0.15302126,3412.8,3412.7,13.68989364]
[1735664028398,2.92892,3414.3,3413.3,0.797]
[1735664028602,2.92892,3414.3,3413.4,3.20172826]
[1735664028603,0.15296792,3413.5,3413.4,3.20172826]
[1735664028820,0.7624,3414.0,3413.4,8.3362733]
[1735664028991,0.7624,3414.0,3413.5,5.0]
[1735664029177,0.15296433,3413.7,3413.5,5.25389588]
[1735664029416,0.15296433,3413.7,3413.6,4.33134504]
[1735664029652,0.15296433,3413.7,3413.6,4.08815504]
[1735664029849,0.15296433,3413.7,3413.6,5.96862296]
[1735664030155,0.15296433,3413.7,3413.6,5.83407792]
[1735664030449,0.15296433,3413.7,3413.6,3.85438792]
[1735664030816,0.15296433,3413.7,3413.6,0.83407792]
[1735664031056,0.15296433,3413.7,3413.4,3.20172826]
[1735664031228,0.15296433,3413.7,3413.5,3.37838]
[1735664031702,0.15296433,3413.7,3413.4,3.20172826]
[1735664031961,0.15296433,3413.7,3413.4,0.372676]
[1735664032325,0.15296433,3413.7,3413.2,3.0]
[1735664032862,0.7624,3413.6,3413.3,0.13425158]
[1735664033220,0.7624,3413.6,3413.2,3.0]
[1735664033621,0.7624,3413.6,3413.0,1.22613655]
[1735664033865,0.7624,3413.6,3412.6,3.06534138]
[1735664033866,0.7624,3413.6,3412.8,1.22613655]
[1735664034236,0.7624,3413.6,3412.8,1.83267069]
[1735664034435,0.7624,3413.6,3412.8,4.83267069]
[1735664034762,3.69188,3413.6,3412.8,3.60653414]
[1735664035262,0.7624,3413.6,3412.8,3.60653414]
[1735664035960,0.7624,3413.6,3412.9,0.13435508]
[1735664036664,0.7624,3413.6,3412.8,3.60653414]
[1735664036915,3.69185,3413.6,3412.8,3.60653414]
[1735664037057,0.7624,3413.6,3412.8,3.60653414]
[1735664037257,0.7624,3413.6,3412.9,0.64355864]
[1735664038699,3.69193,3413.6,3412.7,3.0]
[1735664039597,0.7639,3413.4,3412.5,4.44126113]
[1735664039904,3.6936,3413.4,3412.6,0.25406197]
[1735664040257,3.6936,3413.4,3412.7,0.13444564]
[1735664040454,0.7639,3413.4,3412.7,0.13444564]
[1735664040700,0.7639,3413.4,3412.7,0.96476432]
[1735664041198,0.7639,3413.4,3412.7,3.13444564]
[1735664041501,0.7639,3413.4,3412.8,0.13444564]
[1735664042063,0.7639,3413.4,3412.5,1.73939036]
[1735664042258,0.7639,3412.7,3412.5,1.73939036]
[1735664042482,3.69414,3412.7,3412.5,0.21512458]
[1735664043088,0.7639,3412.7,3412.3,1.22613655]
[1735664043589,0.7639,3412.7,3412.0,3.0]
[1735664043788,0.7639,3412.7,3412.0,1.509733]
[1735664046688,0.7639,3412.7,3412.1,0.1342863]
[1735664047300,0.7639,3412.7,3412.0,4.33878526]
[1735664047617,0.7639,3412.7,3412.1,0.2540649]
[1735664048324,0.7639,3412.7,3412.0,4.33878526]
[1735664048620,0.7639,3412.7,3412.0,1.509733]
[1735664048811,0.7639,3412.7,3412.1,0.13429963]
[1735664049427,0.15305144,3412.6,3411.8,3.0]
[1735664049647,0.15305144,3412.6,3411.8,3.95831725]
[1735664049998,0.15305144,3412.6,3411.9,0.25407702]
[1735664050425,0.15305144,3412.6,3411.8,6.88930725]
[1735664050634,0.15305144,3412.6,3412.0,0.13425905]
[1735664051302,0.15305144,3412.6,3411.8,7.1041626]
[1735664051641,0.15305144,3412.6,3411.9,1.44956496]
[1735664052073,0.15305144,3412.6,3412.0,0.25400982]
[1735664052841,0.15305144,3412.6,3412.1,0.13425744]
[1735664053503,0.15305144,3412.6,3411.9,4.12645514]
[1735664053956,0.15305144,3412.6,3412.0,0.25397762]
[1735664054276,0.15305144,3412.6,3412.2,0.803]
[1735664054584,0.15305144,3412.6,3412.3,7.93052]
[1735664054756,0.15305144,3412.6,3412.4,5.0]
[1735664055371,0.15305144,3412.6,3412.2,0.803]
[1735664056609,0.15305144,3412.6,3412.5,5.9304]
[1735664056786,0.15305144,3412.6,3412.5,13.40934523]
[1735664057186,0.15305144,3412.6,3412.5,13.79747304]
[1735664057828,0.15305144,3412.6,3412.5,10.06407304]
[1735664058020,0.15305144,3412.6,3412.5,8.32192803]
[1735664058375,0.15305144,3412.6,3412.5,8.0680136]
[1735664058831,0.15305144,3412.6,3412.5,6.91792]
[1735664058992,0.15305144,3412.6,3412.5,6.68782]
[1735664059191,0.15305144,3412.6,3412.5,6.10136]
[1735664060310,0.15305144,3412.6,3412.5,7.004562]
[1735664061022,0.15305144,3412.6,3412.5,3.903202]
[1735664061182,0.15305144,3412.6,3412.5,6.792652]
[1735664061383,0.15305144,3412.6,3412.5,0.903202]
[1735664061595,0.15305144,3412.6,3412.5,2.268]
[1735664061932,0.15305144,3412.6,3412.3,3.0]
[1735664062106,0.15305144,3412.6,3412.4,3.85971]
[1735664062806,0.15305144,3412.6,3412.4,3.62581]
[1735664063118,0.15305144,3412.6,3412.1,3.0]
[1735664063335,0.15305144,3412.6,3412.0,1.22613655]
[1735664063534,0.15305144,3412.6,3411.9,1.22613655]
[1735664064231,0.15305144,3412.6,3412.0,0.38884163]
[1735664064439,0.8263,3412.5,3412.0,0.38884163]
[1735664064650,0.8263,3412.5,3412.0,0.13445772]
[1735664065134,0.8263,3412.5,3411.7,1.22613655]
[1735664065334,0.8263,3412.5,3411.8,3.0]
[1735664065545,0.8263,3412.5,3411.8,2.931]
[1735664065704,0.15305144,3412.6,3412.1,2.82905226]
[1735664065903,0.15305144,3412.6,3412.2,8.0]
[1735664066124,0.15305144,3412.6,3412.3,5.0]
[1735664066289,0.15305144,3412.6,3412.4,1.08290523]
[1735664066495,0.15305144,3412.6,3412.5,5.0]
[1735664066827,0.15305144,3412.6,3412.5,4.28524718]
[1735664068279,0.8263,3413.7,3412.6,3.0]
[1735664068439,0.8263,3413.7,3412.9,3.0]
[1735664068773,0.8263,3413.7,3412.9,3.87592623]
[1735664068913,0.8263,3413.7,3413.0,0.13447284]
[1735664069115,0.1529939,3413.6,3413.0,0.38890718]
[1735664069545,0.1529939,3413.6,3413.1,0.25443434]
[1735664069911,0.1529939,3413.6,3412.9,0.87592623]
[1735664070128,0.1529939,3413.6,3413.0,0.68061362]
[1735664071727,0.1529939,3413.6,3413.1,0.25436163]
[1735664072107,0.1529939,3413.6,3413.0,0.68061362]
[1735664074378,0.1529939,3413.6,3413.1,2.82905226]
[1735664074590,0.1529939,3413.6,3413.4,5.75865226]
[1735664074863,0.1529939,3413.6,3413.5,5.65296523]
[1735664075351,0.1529939,3413.6,3413.5,8.58250523]
[1735664075534,0.1529939,3413.6,3413.5,8.83674492]
[1735664076532,0.1529939,3413.6,3413.5,8.97108429]
[1735664078050,0.1529939,3413.6,3413.5,6.04154429]
[1735664078360,0.1529939,3413.6,3413.5,7.05716133]
[1735664079383,0.1529939,3413.6,3413.5,6.04154429]
[1735664080452,0.1529939,3413.6,3413.5,5.7873046]
[1735664080832,0.1529939,3413.6,3413.5,5.65296523]
[1735664081451,0.1529939,3413.6,3413.5,5.90674434]
[1735664081981,0.1529939,3413.6,3413.5,5.65296523]
[1735664083546,0.9272939,3413.6,3413.5,3.19288523]
[1735664083743,0.9272939,3413.6,3413.5,2.6543]
[1735664083961,0.9272939,3413.6,3413.3,3.0]
[1735664084255,0.9272939,3413.6,3413.4,4.32044]
[1735664084471,0.9272939,3413.6,3413.2,3.0]
[1735664084662,0.9272939,3413.6,3413.3,4.09233]
[1735664084846,0.9272939,3413.6,3413.3,5.45252959]
[1735664085047,0.9272939,3413.6,3413.4,4.31424]
[1735664085872,0.9272939,3413.6,3413.3,1.36019959]
[1735664086076,0.9272939,3413.6,3413.0,0.68061362]
[1735664086279,0.9272939,3413.6,3412.7,2.93018]
[1735664086432,0.7743,3413.5,3412.8,3.1341512]
[1735664086631,0.7743,3413.5,3412.8,0.38797096]
[1735664087177,0.7743,3413.1,3412.8,0.1341512]
[1735664087336,0.7743,3413.1,3412.4,3.0]
[1735664087543,0.7743,3413.1,3412.4,3.82156662]
[1735664088065,0.7743,3413.1,3412.5,0.38797913]
[1735664088583,0.7743,3413.1,3412.5,0.13415115]
[1735664088968,0.7743,3413.1,3412.4,0.89108662]
[1735664089352,0.15302846,3413.0,3412.4,0.89108662]
[1735664089758,0.15302846,3413.0,3412.1,6.74662]
[1735664090288,0.15302846,3413.0,3412.2,0.38800243]
[1735664090742,0.15302846,3413.0,3412.3,0.13416398]
[1735664090945,0.15302846,3413.0,3412.3,0.38800243]
[1735664091386,0.15302846,3413.0,3412.3,0.13416398]
[1735664091679,0.15302846,3413.0,3412.1,6.74662]
[1735664091879,0.15302846,3413.0,3412.2,1.08018088]
[1735664092085,0.15302846,3413.0,3412.4,0.25386686]
[1735664092590,0.15302846,3413.0,3412.1,6.74662]
[1735664092788,0.15302846,3413.0,3412.2,1.5228461]
[1735664093307,0.7743,3412.9,3412.3,0.38807557]
[1735664093891,0.7743,3412.9,3412.2,1.5228461]
[1735664094093,0.7743,3412.9,3412.1,3.0]
[1735664094298,0.7743,3412.9,3412.2,1.08018488]
[1735664094455,0.7743,3412.9,3412.2,1.21440002]
[1735664094902,0.7743,3412.9,3412.3,0.13421514]
[1735664095082,0.7743,3412.9,3412.3,0.38821749]
[1735664095281,2.93029,3412.7,3412.3,0.38821749]
[1735664095484,0.8215,3412.5,3412.3,0.25400235]
[1735664095876,0.8215,3412.5,3412.2,1.01547126]
[1735664096209,0.8215,3412.5,3411.8,3.0]
[1735664096802,0.8215,3412.5,3411.7,1.22613655]
[1735664097011,0.8215,3412.5,3411.8,3.0]
[1735664098382,0.8215,3412.5,3411.8,3.672818]
[1735664099194,0.8215,3412.5,3411.8,0.672818]
[1735664099395,0.8215,3412.5,3411.4,7.05518881]
[1735664099601,2.93074,3412.1,3411.4,1.22613655]
[1735664099824,0.816,3412.3,3411.4,1.22613655]
[1735664100624,0.816,3412.2,3411.4,1.22613655]
[1735664101110,0.816,3412.2,3411.3,3.0]
[1735664101270,0.816,3412.2,3411.4,1.399051]
[1735664101466,0.816,3412.2,3411.4,1.44714446]
[1735664101670,0.816,3412.2,3411.4,0.04809346]
[1735664101871,2.93083,3412.0,3411.1,3.0]
[1735664102183,0.816,3411.9,3411.1,3.0]
[1735664102390,0.816,3411.9,3411.2,0.04821013]
[1735664102597,0.816,3411.9,3411.3,0.71033989]
[1735664102795,0.816,3411.9,3411.3,0.75849168]
[1735664104606,0.816,3411.9,3411.4,5.0]
[1735664104792,0.816,3411.9,3411.4,2.93497346]
[1735664104999,0.816,3411.9,3411.4,3.04809346]
[1735664105197,0.816,3411.9,3411.5,0.95189856]
[1735664105403,0.816,3411.9,3411.5,0.99993369]
[1735664105929,0.816,3411.9,3411.6,3.33462]
[1735664106274,0.816,3411.9,3411.6,3.3825968]
[1735664106492,0.816,3411.9,3411.7,2.83462]
[1735664107011,0.816,3411.9,3411.5,0.95189856]
[1735664107412,0.816,3411.9,3411.6,0.0479768]
[1735664107710,0.816,3411.9,3411.2,3.0]
[1735664108180,0.816,3411.9,3411.3,0.04815179]
[1735664108398,0.816,3411.9,3411.4,5.0]
[1735664108596,0.816,3411.9,3411.4,5.04809346]
[1735664108795,0.816,3411.9,3411.5,5.0]
[1735664109116,0.816,3411.9,3411.5,5.04803513]
[1735664109321,0.816,3411.9,3411.6,5.0]
[1735664109484,0.816,3411.9,3411.5,0.04803513]
[1735664109684,0.15309135,3411.8,3411.6,0.0479768]
[1735664109905,0.15309135,3411.8,3411.2,3.0]
[1735664110095,0.15309135,3411.8,3411.6,0.0479768]
[1735664110298,0.15309135,3411.8,3411.3,0.87607223]
[1735664110492,0.15309135,3411.8,3411.6,0.0479768]
[1735664110696,0.15309135,3411.8,3411.3,0.87607223]
[1735664110897,0.15309135,3411.8,3411.6,0.0479768]
[1735664111101,0.15309135,3411.8,3411.2,3.0]
[1735664111296,0.15309135,3411.8,3411.6,0.0479768]
[1735664111496,0.8195,3411.7,3411.3,0.87607123]
[1735664112087,0.8195,3411.7,3411.0,3.0]
[1735664113009,0.8195,3411.7,3411.1,0.04303825]
[1735664113730,0.8195,3411.6,3410.6,2.82905226]
[1735664113901,0.8195,3411.6,3411.2,0.04835969]
[1735664114108,0.8195,3411.6,3410.7,3.2535639]
[1735664114305,2.93116,3411.7,3411.3,0.04830136]
[1735664114306,2.93137,3411.4,3411.3,0.04830136]
[1735664114508,2.93137,3411.4,3410.2,4.95965655]
[1735664114509,0.55,3411.6,3410.2,1.22613655]
[1735664114832,0.8195,3410.6,3410.3,0.17761919]
[1735664115037,2.93212,3410.5,3410.3,0.17761919]
[1735664115233,3.7517,3410.4,3410.3,0.17761919]
[1735664115552,3.7517,3410.4,3410.3,0.04345324]
[1735664116030,2.93235,3410.3,3410.0,1.22613655]
[1735664116229,2.93239,3410.2,3410.0,1.22613655]
[1735664116392,0.8195,3410.1,3409.0,2.82905226]
[1735664116591,3.75214,3409.9,3409.1,0.54414495]
[1735664116905,0.8195,3409.9,3409.1,0.25345891]
[1735664117106,3.75214,3409.9,3409.1,0.25345891]
[1735664117409,2.93272,3409.8,3408.9,0.13405285]
[1735664117798,2.93272,3409.8,3408.8,5.93354]
[1735664118493,2.93272,3409.8,3408.6,2.82905226]
[1735664118494,3.75231,3409.7,3408.7,3.0]
[1735664118726,0.8195,3409.7,3408.7,4.01507297]
[1735664119038,0.8195,3409.7,3408.8,2.93351]
[1735664120633,0.8195,3409.7,3408.9,2.93349]
[1735664122019,0.8195,3409.7,3408.8,2.93356]
[1735664123093,0.7849,3409.6,3408.7,4.01507297]
[1735664123308,1.156673,3409.6,3408.7,4.01507297]
[1735664123543,1.156673,3409.6,3408.7,3.94869297]
[1735664123701,0.7849,3409.6,3408.8,2.93356]
[1735664125115,0.7849,3409.6,3408.9,2.93348]
[1735664125726,0.7849,3409.6,3409.0,2.93335]
[1735664126023,0.7849,3409.6,3409.1,6.47223]
[1735664127642,0.7849,3409.6,3409.0,2.93339]
[1735664128215,0.7849,3409.6,3409.1,0.03051628]
[1735664129015,0.7849,3409.6,3408.9,2.93347]
[1735664129198,0.7849,3409.6,3409.4,2.82905226]
[1735664129401,3.72706,3410.5,3409.5,8.24931476]
[1735664129606,5.76043226,3411.4,3409.5,8.24931476]
[1735664129607,0.7949,3410.4,3409.5,0.31633476]
[1735664129805,0.94790486,3410.4,3409.5,0.31633476]
[1735664130507,0.7949,3410.1,3409.5,0.31633476]
[1735664131057,0.7949,3410.1,3409.5,0.03038502]
[1735664131266,0.7949,3410.1,3409.3,2.93311]
[1735664131768,0.7949,3410.1,3409.2,2.82905226]
[1735664132060,0.7949,3410.1,3409.3,0.03044732]
[1735664134830,0.7949,3410.3,3409.3,0.03044732]
[1735664135030,0.7949,3410.0,3409.3,0.03044732]
[1735664135231,2.93257,3410.0,3409.3,0.03044732]
[1735664135555,0.7949,3409.9,3409.3,0.03044732]
[1735664136356,0.7949,3409.9,3409.3,2.96357732]
[1735664136569,0.7949,3409.9,3409.3,0.03044732]
[1735664136740,0.7949,3409.9,3409.3,2.96357732]
[1735664137081,0.7949,3409.9,3409.5,2.82905226]
[1735664137231,0.7949,3410.3,3409.8,2.82905226]
[1735664137431,0.7949,3410.3,3409.8,5.76176226]
[1735664137759,0.7949,3410.3,3409.9,3.02996751]
[1735664140464,0.15300486,3410.4,3409.9,3.02996751]
[1735664140647,0.15300486,3410.4,3410.0,0.87917298]
[1735664140996,0.15300486,3410.4,3410.1,5.0]
[1735664141588,0.15300486,3410.4,3410.2,0.0298741]
[1735664141791,0.15300486,3410.4,3410.3,5.0]
[1735664142110,0.15300486,3410.4,3410.3,5.02984297]
[1735664142285,0.15300486,3410.4,3410.3,5.90364979]
[1735664144199,0.7682,3411.1,3410.7,2.93192]
[1735664144491,0.15300922,3410.9,3410.7,5.76097226]
[1735664144700,0.15300922,3410.9,3410.8,5.42184865]
[1735664145068,0.15300922,3410.9,3410.8,6.22464865]
[1735664145393,0.7682,3411.9,3411.1,2.93158]
[1735664145563,0.7682,3411.9,3411.4,2.82905226]
[1735664145763,0.7682,3411.9,3411.2,0.28959958]
[1735664145998,0.15301163,3411.8,3411.5,0.03541438]
[1735664146182,0.15301163,3411.8,3411.3,0.73952699]
[1735664146579,0.15301163,3411.8,3411.4,0.03545327]
[1735664147595,0.15301163,3411.8,3411.5,0.04200836]
[1735664147966,0.15301163,3411.8,3411.2,3.1850366]
[1735664148165,0.15301163,3411.8,3411.6,0.04196169]
[1735664148377,0.15301163,3411.8,3411.3,0.61850366]
[1735664148865,0.15301163,3411.8,3411.4,0.04196524]
[1735664149364,0.15301163,3411.8,3411.1,2.93158]
[1735664149594,0.15301163,3411.8,3411.5,0.04191857]
[1735664149869,0.15301163,3411.8,3411.6,0.04187191]
[1735664150066,0.15301163,3411.8,3411.1,2.93156]
[1735664150271,0.15301163,3411.8,3411.7,0.0416457]
[1735664150668,0.15301163,3411.8,3411.7,0.0417255]
[1735664150867,0.15301163,3411.8,3411.2,3.80757123]
[1735664151069,0.15301163,3411.8,3411.7,0.0417255]
[1735664151376,0.15301163,3411.8,3411.7,5.0]
[1735664151697,0.15301163,3411.8,3411.7,0.0417255]
[1735664151893,0.15301163,3411.8,3411.7,2.84784]
[1735664152227,0.15301163,3411.8,3411.7,0.0417255]
[1735664152552,0.15301163,3411.8,3411.3,5.0]
[1735664152859,0.15301163,3411.8,3411.4,1.24394735]
[1735664153056,0.15301163,3411.8,3411.4,1.28581283]
[1735664153276,0.15301163,3411.8,3411.4,0.04186548]
[1735664153483,0.15301163,3411.8,3411.2,4.50791349]
[1735664153669,0.15301163,3411.8,3411.5,0.04181882]
[1735664153869,0.15301163,3411.8,3411.2,4.50791349]
[1735664154115,0.15301163,3411.8,3411.6,0.04177216]
[1735664154275,0.15301163,3411.8,3411.2,4.50791349]
[1735664154617,0.15301163,3411.8,3411.7,0.0417255]
[1735664154806,0.15301163,3411.8,3411.2,3.63185226]
[1735664154967,0.15301163,3411.8,3411.7,0.0417255]
[1735664155166,0.15301163,3411.8,3411.2,6.56334226]